fUST/lending_fUST_20251120
["ID","MTS","AMOUNT","RATE_DAILY","PERIOD"]
[394468893,1763612470343,-500.0,7.508e-05,2]
[394468894,1763612470378,-384.01261872,7.508e-05,2]
[394468895,1763612470475,-115.98738128,7.508e-05,2]
[394468896,1763612470509,-500.0,7.508e-05,2]
[394468897,1763612470542,-500.0,7.508e-05,2]
[394468898,1763612470574,-500.0,7.508e-05,2]
[394468899,1763612470605,-500.0,7.508e-05,2]
[394468900,1763612470642,-382.96919601,7.508e-05,2]
[394468901,1763612470675,-500.0,7.508e-05,2]
[394468902,1763612470709,-500.0,7.508e-05,2]
[394468903,1763612470739,-500.0,7.508e-05,2]
[394468904,1763612470771,-500.0,7.508e-05,2]
[394468905,1763612470802,-500.0,7.508e-05,2]
[394468906,1763612470888,-500.0,7.508e-05,2]
[394468907,1763612470922,-500.0,7.508e-05,2]
[394468908,1763612470954,-500.0,7.508e-05,2]
[394468909,1763612470988,-589.95086974,7.508e-05,2]
[394468910,1763612471020,-589.95086974,7.508e-05,2]
[394468911,1763612471052,-589.95086974,7.508e-05,2]
[394468912,1763612471084,-589.95086974,7.508e-05,2]
[394468913,1763612471116,-589.95086974,7.508e-05,2]
[394468914,1763612471146,-510.55043286,7.508e-05,2]
[394468915,1763612471263,-79.40043688,7.508e-05,2]
[394468916,1763612471296,-589.95086974,7.508e-05,2]
[394468917,1763612471329,-589.95086974,7.508e-05,2]
[394468918,1763612471363,-589.95086974,7.508e-05,2]
[394468919,1763612471396,-589.95086974,7.508e-05,2]
[394468920,1763612471432,-589.95086974,7.508e-05,2]
[394468921,1763612471467,-589.95086974,7.508e-05,2]
[394468922,1763612471504,-589.95086974,7.508e-05,2]
[394468923,1763612471536,-589.95086974,7.508e-05,2]
[394468924,1763612471692,-589.95086974,7.508e-05,2]
[394468925,1763612471724,-589.95086974,7.508e-05,2]
[394468926,1763612471757,-589.95086974,7.508e-05,2]
[394468927,1763612471789,-589.95086974,7.508e-05,2]
[394468928,1763612471820,-589.95086974,7.508e-05,2]
[394468929,1763612471853,-589.95086974,7.508e-05,2]
[394468930,1763612471884,-589.95086974,7.508e-05,2]
[394468931,1763612472011,-589.95086974,7.508e-05,2]
[394468932,1763612472140,-589.95086974,7.508e-05,2]
[394468933,1763612472174,-589.95086974,7.508e-05,2]
[394468934,1763612472206,-589.95086974,7.508e-05,2]
[394468935,1763612472240,-589.95086974,7.508e-05,2]
[394468936,1763612472273,-589.95086974,7.508e-05,2]
[394468937,1763612472306,-589.95086974,7.508e-05,2]
[394468938,1763612472339,-589.95086974,7.508e-05,2]
[394468939,1763612472376,-589.95086974,7.508e-05,2]
[394468940,1763612472512,-589.95086974,7.508e-05,2]
[394468941,1763612472546,-589.95086974,7.508e-05,2]
[394468942,1763612472579,-589.95086974,7.508e-05,2]
[394468943,1763612472611,-589.95086974,7.508e-05,2]
[394468944,1763612472645,-589.95086974,7.508e-05,2]
[394468945,1763612472676,-589.95086974,7.508e-05,2]
[394468946,1763612472708,-589.95086974,7.508e-05,2]
[394468947,1763612472740,-589.95086974,7.508e-05,2]
[394468948,1763612472855,-589.95086974,7.508e-05,2]
[394468949,1763612472889,-589.95086974,7.508e-05,2]
[394468950,1763612472923,-589.95086974,7.508e-05,2]
[394468951,1763612472957,-589.95086974,7.508e-05,2]
[394468952,1763612472993,-589.95086974,7.508e-05,2]
[394468953,1763612473029,-589.95086974,7.508e-05,2]
[394468954,1763612473065,-589.95086974,7.508e-05,2]
[394468955,1763612473099,-589.95086974,7.508e-05,2]
[394468956,1763612474145,-562.18847588,7.508e-05,2]
[394468957,1763612474181,-562.18847588,7.508e-05,2]
[394468958,1763612474219,-562.18847588,7.508e-05,2]
[394468959,1763612474259,-562.18847588,7.508e-05,2]
[394468960,1763612474298,-562.18847588,7.508e-05,2]
[394468961,1763612474335,-562.18847588,7.508e-05,2]
[394468962,1763612474374,-562.18847588,7.508e-05,2]
[394468963,1763612474411,-562.18847588,7.508e-05,2]
[394468964,1763612474449,-442.80591004,7.508e-05,2]
[394468965,1763612474580,-119.38256584,7.508e-05,2]
[394468966,1763612474617,-562.18847588,7.508e-05,2]
[394468967,1763612474654,-562.18847588,7.508e-05,2]
[394468968,1763612474690,-562.18847588,7.508e-05,2]
[394468969,1763612474728,-562.18847588,7.508e-05,2]
[394468970,1763612474765,-562.18847588,7.508e-05,2]
[394468971,1763612474803,-562.18847588,7.508e-05,2]
[394468972,1763612474841,-562.18847588,7.508e-05,2]
[394468973,1763612475023,-562.18847588,7.508e-05,2]
[394468974,1763612502599,257.5,7.359e-05,2]
[394468975,1763612507799,508.72925424,7.434e-05,2]
[394468976,1763612507824,10000.01,7.434e-05,2]
[394468977,1763612507851,10000.01,7.434e-05,2]
[394468978,1763612507878,731.59547202,7.434e-05,2]
[394468979,1763612553150,204.76161479,7.342e-05,2]
[394468980,1763612555527,368.57090662,7.403e-05,2]
[394468983,1763612643407,500.0,7.508e-05,2]
[394468984,1763612643453,500.0,7.508e-05,2]
[394468985,1763612643495,500.0,7.508e-05,2]
[394468986,1763612643534,500.0,7.508e-05,2]
[394468987,1763612643571,500.0,7.508e-05,2]
[394468988,1763612643615,500.0,7.508e-05,2]
[394468989,1763612643649,500.0,7.508e-05,2]
[394468990,1763612643692,500.0,7.508e-05,2]
[394468991,1763612643739,500.0,7.508e-05,2]
[394468992,1763612643775,173.01482433,7.508e-05,2]
[394468993,1763612643815,500.0,7.508e-05,2]
[394468994,1763612656701,173.01482433,7.508e-05,2]
[394469004,1763612734796,437.1091206,7.292e-05,2]
[394469005,1763612737210,338.1486222,7.339e-05,2]
[394469006,1763612739729,608.66751995,7.4e-05,2]
[394469008,1763612793807,200.0,0.00040055,120]
[394469009,1763612794098,200.0,0.00040055,120]
[394469010,1763612794411,200.0,0.00040055,120]
[394469011,1763612794703,200.0,0.00040055,120]
[394469012,1763612794987,200.0,0.00040055,120]
[394469013,1763612795274,200.0,0.00040055,120]
[394469014,1763612795598,200.0,0.00040055,120]
[394469015,1763612795878,200.0,0.00040055,120]
[394469016,1763612796183,200.0,0.00040055,120]
[394469017,1763612796515,200.0,0.00040055,120]
[394469018,1763612796809,200.0,0.00040055,120]
[394469019,1763612797104,200.0,0.00040055,120]
[394469020,1763612797397,200.0,0.00040055,120]
[394469021,1763612797767,200.0,0.00040055,120]
[394469022,1763612797975,200.0,0.00040055,120]
[394469023,1763612798284,200.0,0.00040055,120]
[394469024,1763612798611,200.0,0.00040055,120]
[394469025,1763612798899,200.0,0.00040055,120]
[394469026,1763612799185,200.0,0.00040055,120]
[394469027,1763612799477,200.0,0.00040055,120]
[394469039,1763612921403,5002.05732468,0.00040054,120]
[394469073,1763613031835,-1306.1418717,7.509e-05,2]
[394469074,1763613031945,-314.95082097,7.509e-05,2]
[394469096,1763613037921,-482.24165179,7.509e-05,2]
[394469307,1763613039972,332.95388154,7.304e-05,2]
[394469332,1763613042104,599.31698677,7.338e-05,2]
[394469341,1763613044351,-5669.61570614,7.509e-05,2]
[394469347,1763613046256,-998.23731071,7.509e-05,2]
[394469348,1763613046267,-1290.5641875,7.509e-05,2]
[394469349,1763613046278,-6476.12149901,7.509e-05,2]
[394469350,1763613062338,300.0,7.508e-05,2]
[394469352,1763613102580,206.0,7.359e-05,2]
[394469353,1763613122616,300.0,7.508e-05,2]
[394469356,1763613154090,647.70664216,7.285e-05,2]
[394469357,1763613156172,1165.87195589,7.305e-05,2]
[394469358,1763613158853,2072.66125491,7.326e-05,2]
[394469359,1763613160984,3238.53321079,7.346e-05,2]
[394469360,1763613182552,300.0,7.508e-05,2]
[394469361,1763613203042,500.0,0.00040054,30]
[394469362,1763613203299,500.0,0.00040054,30]
[394469363,1763613203532,500.0,0.00040054,30]
[394469364,1763613203807,500.0,0.00040054,30]
[394469365,1763613204296,500.0,0.00040054,30]
[394469366,1763613204486,576.80837573,0.00040054,30]
[394469367,1763613240005,10000.0,0.00015,10]
[394469370,1763613242360,300.0,7.508e-05,2]
[394469388,1763613251777,3143.01,0.00015,10]
[394469389,1763613302242,300.0,7.508e-05,2]
[394469390,1763613342421,190.24071388,7.261e-05,2]
[394469391,1763613344789,760.96285553,7.302e-05,2]
[394469392,1763613346956,1712.16642495,7.343e-05,2]
[394469393,1763613362742,300.0,7.509e-05,2]
[394469394,1763613401237,500.0,7.509e-05,2]
[394469395,1763613401292,279.19204667,7.509e-05,2]
[394469396,1763613422342,300.0,7.509e-05,2]
[394469399,1763613910678,500.0,0.00040058,120]
[394469400,1763613911213,500.0,0.00040058,120]
[394469401,1763613911857,500.0,0.00040058,120]
[394469402,1763613912490,500.0,0.00040058,120]
[394469403,1763613913153,500.0,0.00040058,120]
[394469404,1763613913760,500.0,0.00040058,120]
[394469405,1763613914375,500.0,0.00040058,120]
[394469406,1763613915010,500.0,0.00040058,120]
[394469436,1763614066380,153.42499111,0.00013828,7]
[394469438,1763614068334,613.08626449,0.00013828,7]
[394469448,1763614084082,481.6,0.00015096,15]
[394469479,1763614113642,10000.01,7.508e-05,2]
[394469480,1763614113663,9510.4127976,7.508e-05,2]
[394469506,1763614162062,1000.0,0.00040058,120]
[394469507,1763614166234,1000.0,0.00040058,120]
[394469509,1763614171432,1000.0,0.00040058,120]
[394469520,1763614177501,1000.0,0.00040058,120]
[394469532,1763614189984,325.04844074,0.00040058,120]
[394469533,1763614203256,2000.0,0.00013699,7]
[394469563,1763614232110,-211.98202441,7.871e-05,2]
[394469564,1763614232121,-164.8,7.957e-05,2]
[394469565,1763614232131,-3410.30623116,8.051e-05,2]
[394469566,1763614232141,-42375.38466443,8.119e-05,2]
[394470146,1763614246851,6233.3583097,7.612e-05,2]
[394470147,1763614254817,637.79694076,0.00013835,7]
[394470158,1763614309092,885279.0,0.00040058,20]
[394470163,1763614331233,150.0,0.00015106,29]
[394470164,1763614331260,70.0,0.00015106,29]
[394470170,1763614371557,248.6205544,7.838e-05,2]
[394470171,1763614377659,266.32546088,0.00013835,7]
[394470173,1763614380193,1064.23654167,0.00013829,7]
[394470707,1763614640666,0.46938822,0.0004007,30]
[394470989,1763614852519,466.0024201,7.662e-05,2]
[394471025,1763614902576,164.801,7.859e-05,2]
[394471050,1763614941033,481.9,0.00018,30]
[394471053,1763614947859,299.38,0.00032877,120]
[394471054,1763614972315,582.19304664,7.873e-05,2]
[394471120,1763615103442,2305.03466916,7.838e-05,2]
[394471121,1763615103464,10000.01,7.838e-05,2]
[394471122,1763615103486,2327.77242904,7.838e-05,2]
[394471123,1763615111524,7672.23757096,7.22e-05,2]
[394471124,1763615111545,2327.77242904,7.22e-05,2]
[394471188,1763615277673,1047.94748395,7.52e-05,2]
[394471190,1763615279940,202.12200156,7.825e-05,2]
[394471194,1763615298956,1498.0297246,7.022e-05,2]
[394471368,1763615432208,-321.0,7.868e-05,2]
[394471438,1763615438228,-487.48800624,7.868e-05,2]
[394471440,1763615438238,-484.52684796,7.873e-05,2]
[394471442,1763615438249,-207.74238392,7.894e-05,2]
[394471444,1763615438258,-1819.09801403,7.912e-05,2]
[394471446,1763615438268,-872.14832633,7.916e-05,2]
[394471448,1763615438281,-300.0,8.017e-05,2]
[394471450,1763615438291,-500.0,8.018e-05,2]
[394471452,1763615438300,-500.0,8.018e-05,2]
[394471454,1763615438310,-500.0,8.018e-05,2]
[394471456,1763615438321,-212.1942603,8.018e-05,2]
[394471458,1763615438330,-500.0,8.018e-05,2]
[394471459,1763615438340,-500.0,8.018e-05,2]
[394471460,1763615438350,-500.0,8.018e-05,2]
[394471461,1763615438359,-500.0,8.018e-05,2]
[394471462,1763615438368,-500.0,8.018e-05,2]
[394471463,1763615438377,-500.0,8.018e-05,2]
[394471464,1763615438386,-500.0,8.018e-05,2]
[394471465,1763615438395,-500.0,8.018e-05,2]
[394471473,1763615438550,-344.14190898,8.018e-05,2]
[394472255,1763615446057,-155.85809102,8.018e-05,2]
[394472257,1763615446067,-321.21942603,8.018e-05,2]
[394472259,1763615446076,-75.42228244,8.018e-05,2]
[394472261,1763615446088,-126.93543156,8.018e-05,2]
[394472263,1763615446097,-173.06456844,8.018e-05,2]
[394472304,1763615446481,-326.93543156,8.018e-05,2]
[394472306,1763615446490,-500.0,8.018e-05,2]
[394472308,1763615446499,-2502.15660201,8.019e-05,2]
[394472536,1763616507663,164.0,0.000328,120]
[394472542,1763616519559,164.62479017,0.000328,120]
[394472669,1763616632559,-164.801,7.761e-05,2]
[394472671,1763616632568,-145.41579657,7.793e-05,2]
[394472673,1763616632579,-58.17173968,7.793e-05,2]
[394472675,1763616632589,-500.0,7.917e-05,2]
[394472677,1763616632598,-316.46644439,7.917e-05,2]
[394472679,1763616632610,-183.53355561,7.917e-05,2]
[394472681,1763616632620,-500.0,7.917e-05,2]
[394472683,1763616632629,-69.80449354,7.917e-05,2]
[394472785,1763616638370,-430.19550646,7.917e-05,2]
[394472787,1763616638380,-351.64581128,7.917e-05,2]
[394472789,1763616638392,-148.35418872,7.917e-05,2]
[394472791,1763616638401,-500.0,7.917e-05,2]
[394472793,1763616638410,-468.09840392,7.917e-05,2]
[394472796,1763616638422,-31.90159608,7.917e-05,2]
[394472797,1763616638433,-500.0,7.917e-05,2]
[394472799,1763616638443,-148.92628005,7.917e-05,2]
[394472801,1763616638455,-351.07371995,7.917e-05,2]
[394472803,1763616638464,-103.76499582,7.917e-05,2]
[394472806,1763616638479,-396.23500418,7.917e-05,2]
[394472808,1763616638489,-500.0,7.917e-05,2]
[394472810,1763616638498,-554.88236379,7.917e-05,2]
[394472812,1763616638507,-500.0,7.917e-05,2]
[394472814,1763616638517,-500.0,7.917e-05,2]
[394472816,1763616638527,-500.0,7.917e-05,2]
[394472818,1763616638537,-500.0,7.917e-05,2]
[394472820,1763616638546,-500.0,7.917e-05,2]
[394472822,1763616638555,-500.0,7.917e-05,2]
[394472824,1763616638564,-500.0,7.917e-05,2]
[394472826,1763616638574,-500.0,7.917e-05,2]
[394472828,1763616638583,-500.0,7.917e-05,2]
[394472830,1763616638593,-500.0,7.917e-05,2]
[394472832,1763616638602,-500.0,7.917e-05,2]
[394472834,1763616638612,-500.0,7.917e-05,2]
[394472836,1763616638622,-500.0,7.917e-05,2]
[394472838,1763616638632,-500.0,7.917e-05,2]
[394472840,1763616638642,-500.0,7.917e-05,2]
[394472842,1763616638651,-500.0,7.917e-05,2]
[394472844,1763616638662,-500.0,7.917e-05,2]
[394472846,1763616638676,-500.0,7.917e-05,2]
[394472848,1763616638685,-300.0,7.917e-05,2]
[394472850,1763616638695,-1200.0,7.918e-05,2]
[394472852,1763616638705,-11948.43497513,7.919e-05,2]
[394472854,1763616638717,-3251.0,7.919e-05,2]
[394473042,1763616640577,-464025.1508261,7.919e-05,2]
[394473397,1763616672617,250.0,0.00032877,120]
[394473495,1763616700077,395.0,0.00032877,120]
[394473725,1763616798990,-31977.94061178,0.00040069,30]
[394473726,1763616799051,-1881.15,0.00040069,30]
[394473728,1763616799102,-1881.15,0.00040069,30]
[394473729,1763616799155,-1881.15,0.00040069,30]
[394473730,1763616799209,-1881.15,0.00040069,30]
[394473731,1763616799263,-1881.15,0.00040069,30]
[394473732,1763616799320,-1881.15,0.00040069,30]
[394473734,1763616799378,-1881.15,0.00040069,30]
[394473735,1763616799442,-1881.15,0.00040069,30]
[394473736,1763616799511,-1881.15,0.00040069,30]
[394473737,1763616799575,-1881.15,0.00040069,30]
[394473738,1763616799635,-1881.15,0.00040069,60]
[394473739,1763616799691,-1881.15,0.00040069,60]
[394473740,1763616799746,-1881.15,0.00040069,60]
[394473742,1763616799805,-1881.15,0.00040069,60]
[394473743,1763616799866,-1881.15,0.00040069,60]
[394473744,1763616799926,-1881.15,0.00040069,60]
[394473745,1763616799985,-1881.15,0.00040069,60]
[394473746,1763616800051,-1881.15,0.00040069,60]
[394473748,1763616800109,-1881.15,0.00040069,60]
[394473749,1763616800164,-1881.15,0.00040069,60]
[394473750,1763616800223,-1881.15,0.00040069,60]
[394473751,1763616800282,-1881.15,0.00040069,60]
[394473752,1763616800341,-1881.15,0.00040069,60]
[394473754,1763616800398,-1881.15807051,0.00040069,60]
[394473755,1763616800460,-253235.077,0.00040069,30]
[394473776,1763616807961,334471.00700958,0.00040069,20]
[394473849,1763616830818,250.0,0.00032877,120]
[394473970,1763617070988,359912.001393,0.00040034,20]
[394473996,1763617152768,574.33440881,0.00040034,20]
[394476685,1763617600329,5735.0,0.000141,3]
[394476710,1763617631525,-298.0,7.817e-05,2]
[394476711,1763617631582,-199.51578552,7.817e-05,2]
[394476712,1763617631640,-500.0,7.818e-05,2]
[394476713,1763617631699,-551.33874845,7.818e-05,2]
[394476714,1763617631757,-500.0,7.818e-05,2]
[394476715,1763617631818,-500.0,7.818e-05,2]
[394476716,1763617631877,-394.79852539,7.818e-05,2]
[394476717,1763617631934,-500.0,7.818e-05,2]
[394476718,1763617631991,-500.0,7.818e-05,2]
[394476719,1763617632062,-264.84105312,7.818e-05,2]
[394476720,1763617632134,-500.0,7.818e-05,2]
[394476721,1763617632204,-500.0,7.818e-05,2]
[394476722,1763617632275,-500.0,7.818e-05,2]
[394476723,1763617632340,-500.0,7.818e-05,2]
[394476724,1763617632408,-500.0,7.818e-05,2]
[394476725,1763617632479,-500.0,7.818e-05,2]
[394476726,1763617632548,-439.57278691,7.818e-05,2]
[394476727,1763617632619,-500.0,7.818e-05,2]
[394476728,1763617632691,-167.2,7.818e-05,2]
[394476729,1763617632761,-890000.0,7.819e-05,2]
[394476730,1763617632825,-167.20233595,8.092e-05,2]
[394476731,1763617632889,-431.094406,8.219e-05,2]
[394476732,1763617632950,-37203.8672845,8.219e-05,2]
[394476733,1763617633011,-1466.4,8.219e-05,2]
[394476734,1763617633075,-1466.4,8.219e-05,2]
[394476735,1763617633134,-1466.4,8.219e-05,2]
[394476736,1763617633195,-1466.4,8.219e-05,2]
[394476737,1763617633262,-1466.4,8.219e-05,2]
[394476739,1763617633324,-1466.4,8.219e-05,2]
[394476740,1763617633386,-1466.4,8.219e-05,2]
[394476741,1763617633453,-1466.4,8.219e-05,2]
[394476742,1763617633519,-1466.4,8.219e-05,2]
[394476743,1763617633582,-1466.4,8.219e-05,2]
[394476744,1763617633645,-1466.4,8.219e-05,2]
[394476745,1763617633710,-1466.4,8.219e-05,2]
[394476746,1763617633779,-1466.4,8.219e-05,2]
[394476747,1763617633849,-1466.4,8.219e-05,2]
[394476748,1763617633924,-1466.4,8.219e-05,2]
[394476749,1763617633997,-1466.4,8.219e-05,2]
[394476750,1763617634067,-1466.4,8.219e-05,2]
[394476751,1763617634133,-1466.4,8.219e-05,2]
[394476752,1763617634199,-1466.4,8.219e-05,2]
[394476753,1763617634270,-1466.4,8.219e-05,2]
[394476754,1763617634341,-1466.4,8.219e-05,2]
[394476755,1763617634408,-1466.4,8.219e-05,2]
[394476756,1763617634478,-1466.4,8.219e-05,2]
[394476757,1763617634545,-1466.41369146,8.219e-05,2]
[394476758,1763617634613,-992.223,8.352e-05,2]
[394476759,1763617634681,-630.0,8.352e-05,2]
[394476760,1763617634748,-2151.0,8.352e-05,2]
[394476761,1763617634821,-414.0,8.352e-05,2]
[394476762,1763617634890,-414.0,8.352e-05,2]
[394476763,1763617634960,-1687.0,8.39e-05,2]
[394476764,1763617635029,-500.0,8.39e-05,2]
[394476765,1763617635093,-1070.0,8.39e-05,2]
[394476766,1763617635153,-194.500939,8.39e-05,2]
[394476767,1763617635218,-165.46576268,8.39e-05,2]
[394476768,1763617635283,-500.0,8.39e-05,2]
[394476769,1763617635351,-151.0,8.39e-05,2]
[394476770,1763617635415,-247.61873019,8.39e-05,2]
[394476771,1763617635480,-151.0,8.39e-05,2]
[394476772,1763617635542,-151.0,8.39e-05,2]
[394476773,1763617635603,-500.0,8.39e-05,2]
[394476774,1763617635665,-500.0,8.39e-05,2]
[394476775,1763617635731,-1687.0,8.417e-05,2]
[394476776,1763617635797,-500.0,8.417e-05,2]
[394476777,1763617635869,-1070.0,8.417e-05,2]
[394476778,1763617635938,-459.18024183,8.417e-05,2]
[394476779,1763617636009,-161.40342059,8.417e-05,2]
[394476780,1763617636080,-220.56058299,8.417e-05,2]
[394476781,1763617636152,-500.0,8.417e-05,2]
[394476782,1763617636226,-1687.0,8.445e-05,2]
[394476783,1763617636295,-500.0,8.445e-05,2]
[394476784,1763617636360,-1070.0,8.445e-05,2]
[394476785,1763617636427,-432.30933982,8.445e-05,2]
[394476786,1763617636494,-191.5785411,8.45e-05,2]
[394476787,1763617636559,-681.3229241,8.45e-05,2]
[394476788,1763617636620,-191.5785411,8.45e-05,2]
[394476789,1763617636680,-198.1431991,8.45e-05,2]
[394476790,1763617636741,-1687.0,8.472e-05,2]
[394476791,1763617636803,-413.87486318,8.472e-05,2]
[394476792,1763617636866,-1070.0,8.472e-05,2]
[394476793,1763617636927,-151.0,8.493e-05,2]
[394476794,1763617636989,-151.0,8.493e-05,2]
[394476795,1763617637052,-152.65862984,8.493e-05,2]
[394476796,1763617637236,-151.0,8.493e-05,2]
[394476797,1763617637303,-151.0,8.493e-05,2]
[394476798,1763617637364,-151.0,8.493e-05,2]
[394476799,1763617637427,-500.0,8.493e-05,2]
[394476800,1763617637488,-500.0,8.493e-05,2]
[394476801,1763617637548,-209.19821341,8.493e-05,2]
[394476802,1763617637610,-151.0,8.493e-05,2]
[394476803,1763617637671,-151.0,8.493e-05,2]
[394476804,1763617637732,-500.0,8.493e-05,2]
[394476805,1763617637793,-211.43270025,8.493e-05,2]
[394476806,1763617637857,-152.17009784,8.493e-05,2]
[394476807,1763617637916,-180.84576467,8.493e-05,2]
[394476808,1763617637978,-151.0,8.493e-05,2]
[394476809,1763617638039,-160.13598951,8.493e-05,2]
[394476810,1763617638107,-163.1336594,8.493e-05,2]
[394476811,1763617638174,-178.6549524,8.493e-05,2]
[394476812,1763617638236,-151.0,8.493e-05,2]
[394476813,1763617638299,-201.99731467,8.493e-05,2]
[394476814,1763617638362,-151.0,8.493e-05,2]
[394476815,1763617638426,-152.19177568,8.493e-05,2]
[394476816,1763617638490,-300.0,8.493e-05,2]
[394476817,1763617638549,-151.0,8.493e-05,2]
[394476818,1763617638611,-1687.0,8.5e-05,2]
[394476819,1763617638672,-1070.0,8.5e-05,2]
[394476820,1763617638731,-322.6019928,8.5e-05,2]
[394476821,1763617638794,-191.5785411,8.5e-05,2]
[394476822,1763617638856,-154.290832,8.52e-05,2]
[394476823,1763617638918,-152.59220105,8.52e-05,2]
[394476824,1763617638997,-160.2795871,8.52e-05,2]
[394476825,1763617639067,-153.41468497,8.52e-05,2]
[394476826,1763617639129,-178.59285443,8.52e-05,2]
[394476827,1763617639190,-500.0,8.52e-05,2]
[394476828,1763617639254,-500.0,8.52e-05,2]
[394476829,1763617639322,-154.93634303,8.52e-05,2]
[394476830,1763617639382,-158.34869984,8.52e-05,2]
[394476831,1763617639440,-500.0,8.52e-05,2]
[394476832,1763617639504,-151.0,8.52e-05,2]
[394476833,1763617639568,-151.0,8.52e-05,2]
[394476834,1763617639639,-151.0,8.52e-05,2]
[394476835,1763617639707,-300.0,8.52e-05,2]
[394476836,1763617639772,-1687.0,8.527e-05,2]
[394476837,1763617639840,-1070.0,8.527e-05,2]
[394476838,1763617639906,-500.0,8.548e-05,2]
[394476839,1763617639969,-340.61254925,8.548e-05,2]
[394476840,1763617640034,-188.76264581,8.548e-05,2]
[394476841,1763617640099,-211.64192735,8.548e-05,2]
[394476842,1763617640163,-151.0,8.548e-05,2]
[394476843,1763617640226,-151.0,8.548e-05,2]
[394476844,1763617640291,-267.7555081,8.548e-05,2]
[394476845,1763617640354,-1687.0,8.554e-05,2]
[394476846,1763617640415,-1070.0,8.554e-05,2]
[394476847,1763617640480,-500.0,8.575e-05,2]
[394476848,1763617640543,-151.0,8.575e-05,2]
[394476849,1763617640605,-151.0,8.575e-05,2]
[394476850,1763617640666,-1687.0,8.582e-05,2]
[394476851,1763617640729,-1070.0,8.582e-05,2]
[394476852,1763617640790,-267.94196539,8.59e-05,2]
[394476853,1763617640850,-500.0,8.603e-05,2]
[394476854,1763617640908,-243.56605884,8.603e-05,2]
[394476855,1763617640967,-210.63750549,8.603e-05,2]
[394476856,1763617641027,-1687.0,8.609e-05,2]
[394476857,1763617641089,-1070.0,8.609e-05,2]
[394476858,1763617641147,-500.0,8.63e-05,2]
[394476859,1763617641205,-150.188,8.635e-05,2]
[394476860,1763617641267,-150.0,8.635e-05,2]
[394476861,1763617641325,-150.101,8.635e-05,2]
[394476862,1763617641382,-150.135,8.635e-05,2]
[394476863,1763617641443,-1687.0,8.637e-05,2]
[394476864,1763617641504,-1070.0,8.637e-05,2]
[394476865,1763617641563,-1191.39,8.641e-05,2]
[394476866,1763617641621,-477.4623538,8.657e-05,2]
[394476867,1763617641685,-1687.0,8.664e-05,2]
[394476868,1763617641746,-1070.0,8.664e-05,2]
[394476869,1763617641810,-500.0,8.664e-05,2]
[394476870,1763617641878,-1687.0,8.691e-05,2]
[394476871,1763617641941,-1070.0,8.691e-05,2]
[394476872,1763617642007,-1687.0,8.719e-05,2]
[394476873,1763617642077,-1070.0,8.719e-05,2]
[394476874,1763617642144,-419.15884044,8.741e-05,2]
[394476875,1763617642210,-1687.0,8.746e-05,2]
[394476876,1763617642276,-1070.0,8.746e-05,2]
[394476877,1763617642339,-170.2,8.75e-05,2]
[394476879,1763617642405,-500.0,8.754e-05,2]
[394476880,1763617642473,-500.307216,8.754e-05,2]
[394476881,1763617642540,-500.0,8.754e-05,2]
[394476882,1763617642604,-170.2,8.759e-05,2]
[394476884,1763617642664,-170.19,8.767e-05,2]
[394476886,1763617642721,-1687.0,8.774e-05,2]
[394476887,1763617642781,-1070.0,8.774e-05,2]
[394476888,1763617642843,-1687.0,8.801e-05,2]
[394476889,1763617642907,-1070.0,8.801e-05,2]
[394476890,1763617642971,-500.0,8.816e-05,2]
[394476892,1763617643032,-37203.86728446,8.825e-05,2]
[394476894,1763617643093,-1687.0,8.828e-05,2]
[394476895,1763617643170,-1070.0,8.828e-05,2]
[394476896,1763617643236,-1687.0,8.856e-05,2]
[394476897,1763617643302,-1070.0,8.856e-05,2]
[394476899,1763617643366,-500.0,8.872e-05,2]
[394476900,1763617643429,-501.35511586,8.872e-05,2]
[394476901,1763617643495,-1687.0,8.883e-05,2]
[394476902,1763617643562,-1070.0,8.883e-05,2]
[394476903,1763617643632,-501.80329947,8.9e-05,2]
[394476904,1763617643700,-1687.0,8.911e-05,2]
[394476905,1763617643768,-1070.0,8.911e-05,2]
[394476906,1763617643944,-363.95233423,8.924e-05,2]